bitfinex-derivatives/quotes_BTCF0:USTF0_20241019
["timestamp","ask_amount","ask_price","bid_price","bid_amount"]
[1729343479521,0.0285212,68209.0,68208.0,0.2296]
[1729343479711,0.0002,68209.0,68208.0,0.3958]
[1729343479912,0.0285212,68209.0,68208.0,0.3958]
[1729343481821,0.0002,68209.0,68208.0,0.50751516]
[1729343482022,0.0002,68209.0,68208.0,1.18078514]
[1729343482221,0.0002,68209.0,68208.0,1.10751516]
[1729343483525,0.0002,68209.0,68208.0,1.54735516]
[1729343485920,0.066177,68209.0,68208.0,1.54735516]
[1729343486724,0.0002,68209.0,68208.0,1.54735516]
[1729343489224,0.066177,68209.0,68208.0,1.54735516]
[1729343489919,0.066177,68209.0,68208.0,1.43564]
[1729343491921,0.066177,68209.0,68208.0,1.501617]
[1729343493421,0.0002,68209.0,68208.0,1.501617]
[1729343496929,0.02950438,68211.0,68209.0,0.43984]
[1729343497133,0.02950438,68211.0,68210.0,0.53812922]
[1729343497323,0.02950438,68211.0,68210.0,0.97792922]
[1729343497524,0.02950438,68211.0,68210.0,1.57792922]
[1729343497925,0.0002,68214.0,68210.0,1.51195322]
[1729343498220,0.066172,68214.0,68212.0,0.065973]
[1729343498626,0.066172,68214.0,68213.0,0.4398]
[1729343499030,0.066172,68214.0,68213.0,1.105773]
[1729343500248,0.0002,68214.0,68213.0,1.105773]
[1729343500442,0.0002,68214.0,68213.0,1.17889999]
[1729343500624,0.0002,68214.0,68213.0,1.21670002]
[1729343501334,0.065971,68215.0,68213.0,1.21670002]
[1729343501637,0.065971,68215.0,68214.0,0.61669902]
[1729343502032,0.065971,68215.0,68214.0,1.21669902]
[1729343503824,0.065971,68215.0,68214.0,1.21658021]
[1729343504928,0.065971,68215.0,68214.0,1.105772]
[1729343505441,0.065971,68215.0,68214.0,1.13182643]
[1729343508233,0.065971,68215.0,68214.0,0.76513076]
[1729343508439,0.065971,68215.0,68214.0,1.20493076]
[1729343509241,0.065971,68215.0,68214.0,1.31586005]
[1729343509942,0.065971,68215.0,68214.0,1.24275572]
[1729343512044,0.065971,68215.0,68214.0,1.13182643]
[1729343516043,0.065971,68215.0,68214.0,0.53182643]
[1729343517151,0.065971,68215.0,68214.0,1.13182643]
[1729343519442,0.065971,68215.0,68214.0,0.53182643]
[1729343519642,0.065971,68215.0,68214.0,1.13182643]
[1729343520151,0.065971,68215.0,68214.0,1.37514948]
[1729343522155,0.065971,68215.0,68214.0,0.33534948]
[1729343522752,0.065971,68215.0,68214.0,1.37514948]
[1729343523156,0.065971,68215.0,68214.0,0.33534948]
[1729343527152,0.065971,68215.0,68214.0,0.09202643]
[1729343530348,0.065971,68215.0,68214.0,0.13599809]
[1729343535149,0.1709,68221.0,68214.0,0.4889819]
[1729343535446,0.236865,68221.0,68220.0,0.3608]
[1729343535759,0.236865,68221.0,68220.0,0.6041275]
[1729343537053,0.236865,68221.0,68220.0,0.47180901]
[1729343541555,0.236865,68221.0,68220.0,0.47148145]
[1729343541961,0.20019558,68221.0,68220.0,0.47148145]
[1729343543359,0.20019558,68221.0,68220.0,0.55946439]
[1729343545753,0.20019558,68221.0,68220.0,0.47148145]
[1729343550058,0.22850899,68221.0,68220.0,0.3608]
[1729343557371,0.20019558,68221.0,68220.0,0.3608]
[1729343557772,0.13423058,68221.0,68218.0,0.07330343]
[1729343557955,0.20019558,68221.0,68220.0,0.7216]
[1729343558157,0.0002,68219.0,68218.0,0.07330343]
[1729343558361,0.066367,68219.0,68218.0,0.90540861]
[1729343559772,0.066367,68219.0,68218.0,0.18380861]
[1729343559979,0.066367,68219.0,68218.0,0.90540861]
[1729343560172,0.066367,68219.0,68218.0,0.9054057]
[1729343561169,0.066367,68219.0,68218.0,0.1838057]
[1729343561579,0.066367,68219.0,68218.0,0.9054057]
[1729343561875,0.066367,68219.0,68218.0,0.83210227]
[1729343564983,0.066367,68219.0,68218.0,0.11050227]
[1729343565180,0.09467867,68219.0,68218.0,0.7216]
[1729343570880,0.065969,68217.0,68214.0,0.02625443]
[1729343571080,0.0002,68215.0,68214.0,0.09222643]
[1729343571374,0.0002,68215.0,68214.0,0.81382643]
[1729343571881,0.066171,68215.0,68214.0,0.81382643]
[1729343572381,0.066171,68215.0,68214.0,1.01231695]
[1729343572587,0.066171,68215.0,68214.0,1.05604347]
[1729343574490,0.066171,68215.0,68214.0,0.3344241]
[1729343574880,0.066171,68215.0,68214.0,0.92432]
[1729343576288,0.066171,68215.0,68214.0,1.05602026]
[1729343577387,0.066171,68215.0,68214.0,0.92432]
[1729343579375,0.066171,68215.0,68214.0,0.81382643]
[1729343580688,0.066171,68215.0,68214.0,0.74785443]
[1729343582681,0.13038227,68215.0,68214.0,0.7218]
[1729343582877,0.73038227,68215.0,68214.0,0.7218]
[1729343583096,0.77538018,68215.0,68214.0,0.7218]
[1729343583283,0.13038227,68215.0,68214.0,0.7218]
[1729343586999,0.15711027,68215.0,68214.0,0.7218]
[1729343587398,0.092899,68215.0,68214.0,0.7218]
[1729343588191,0.092899,68215.0,68214.0,0.76572717]
[1729343590200,0.092899,68215.0,68214.0,0.7218]
[1729343590797,0.092899,68215.0,68214.0,0.76572717]
[1729343590998,0.092899,68215.0,68214.0,0.7218]
[1729343591897,0.092899,68215.0,68214.0,0.76572717]
[1729343592304,0.092899,68215.0,68214.0,0.7218]
[1729343592503,0.092899,68215.0,68214.0,0.76572717]
[1729343593396,0.092899,68215.0,68214.0,0.7218]
[1729343593706,0.092899,68215.0,68214.0,0.76572717]
[1729343594909,0.092899,68215.0,68214.0,0.76570708]
[1729343595617,0.092899,68215.0,68214.0,0.7218]
[1729343595904,0.092899,68215.0,68214.0,0.7657078]
[1729343596407,0.092899,68215.0,68214.0,0.7218]
[1729343600692,0.092899,68215.0,68214.0,0.76571224]
[1729343601695,0.092899,68215.0,68214.0,0.7218]
[1729343601897,0.092899,68215.0,68214.0,0.76571363]
[1729343602305,0.12121666,68215.0,68214.0,0.7218]
[1729343605707,0.12121673,68215.0,68214.0,0.7218]
[1729343609517,0.092899,68215.0,68214.0,0.78044834]
[1729343611305,0.092899,68215.0,68214.0,0.7218]
[1729343615414,0.092899,68215.0,68214.0,0.0002]
[1729343615604,0.092899,68215.0,68214.0,0.361]
[1729343617407,0.15711605,68215.0,68214.0,0.361]
[1729343619213,0.15711605,68215.0,68214.0,0.0002]
[1729343619514,0.15711605,68215.0,68214.0,0.361]
[1729343619717,0.15711605,68215.0,68214.0,0.0002]
[1729343620314,0.15711605,68215.0,68214.0,0.361]
[1729343620518,0.15711605,68215.0,68214.0,0.0002]
[1729343620818,0.12121667,68215.0,68214.0,0.0002]
[1729343621315,0.15711602,68215.0,68214.0,0.0002]
[1729343621512,0.15711602,68215.0,68214.0,0.361]
[1729343621717,0.15711602,68215.0,68214.0,0.0002]
[1729343622109,0.15711602,68215.0,68214.0,0.361]
[1729343622312,0.12121667,68215.0,68214.0,0.361]
[1729343622520,0.20211614,68215.0,68214.0,0.361]
[1729343622920,0.15711723,68215.0,68214.0,0.361]
[1729343624423,0.15711723,68215.0,68214.0,0.41967199]
[1729343624424,0.092899,68215.0,68214.0,0.41967199]
[1729343625622,0.092899,68215.0,68214.0,0.361]
[1729343626010,0.092899,68215.0,68214.0,0.41966314]
[1729343628527,0.092899,68215.0,68214.0,0.361]
[1729343630932,0.092899,68215.0,68214.0,0.4196581]
[1729343631223,0.092899,68215.0,68214.0,0.361]
[1729343631415,0.092899,68215.0,68214.0,0.41965785]
[1729343631612,0.092899,68215.0,68214.0,0.361]
[1729343632931,0.092899,68215.0,68214.0,0.0002]
[1729343633224,0.092899,68215.0,68214.0,0.361]
[1729343635526,0.692899,68215.0,68214.0,0.361]
[1729343635917,0.692899,68215.0,68214.0,0.40499392]
[1729343636324,0.692899,68215.0,68214.0,0.361]
[1729343637331,0.092899,68215.0,68214.0,0.361]
[1729343637516,0.692899,68215.0,68214.0,0.361]
[1729343637711,0.092899,68215.0,68214.0,0.361]
[1729343638323,0.692899,68215.0,68214.0,0.361]
[1729343638732,1.132699,68215.0,68214.0,0.361]
[1729343639730,1.24192908,68215.0,68214.0,0.361]
[1729343640319,1.24192908,68215.0,68180.0,0.05865729]
[1729343640320,0.065983,68202.0,68201.0,0.3608]
[1729343640522,0.13041056,68202.0,68201.0,0.3608]
[1729343641223,0.09450471,68202.0,68201.0,0.3608]
[1729343641432,0.13041199,68202.0,68201.0,0.3608]
[1729343641732,0.15676871,68202.0,68201.0,0.3608]
[1729343643232,0.12086379,68202.0,68201.0,0.3608]
[1729343644417,0.15677133,68202.0,68201.0,0.3608]
[1729343647532,0.09253972,68202.0,68201.0,0.40479392]
[1729343653836,0.09253972,68202.0,68201.0,0.3608]
[1729343654632,0.12086381,68202.0,68201.0,0.3608]
[1729343662742,0.09253972,68202.0,68201.0,0.3608]
[1729343663246,0.09253972,68202.0,68201.0,0.40479392]
[1729343663842,0.09253972,68202.0,68201.0,0.3608]
[1729343667246,0.09253972,68202.0,68201.0,0.41945729]
[1729343668245,0.09253972,68202.0,68201.0,0.3608]
[1729343669650,0.15677141,68202.0,68201.0,0.3608]
[1729343670342,0.15729102,68202.0,68201.0,0.3608]
[1729343676845,0.15729126,68202.0,68201.0,0.3608]
[1729343677852,0.09305933,68202.0,68201.0,0.3608]
[1729343679754,0.06670261,68202.0,68201.0,0.47249854]
[1729343679962,0.06670261,68202.0,68201.0,0.64679854]
[1729343681255,0.00089347,68204.0,68201.0,1.24679854]
[1729343681451,0.00089347,68204.0,68202.0,0.47249854]
[1729343681651,0.00089347,68204.0,68203.0,0.11169854]
[1729343681853,0.00227554,68206.0,68203.0,0.20379854]
[1729343682052,0.00227554,68206.0,68204.0,0.11169854]
[1729343682253,0.00227554,68206.0,68205.0,0.11169854]
[1729343682456,0.06825454,68206.0,68205.0,0.11169854]
[1729343683161,0.06825454,68206.0,68205.0,0.18493061]
[1729343684158,0.06825454,68206.0,68205.0,0.07323207]
[1729343685147,0.00227554,68206.0,68204.0,0.07323207]
[1729343685361,0.06618,68205.0,68204.0,0.07323207]
[1729343685863,0.06618,68205.0,68204.0,0.78391675]
[1729343686255,0.06618,68205.0,68204.0,0.78391188]
[1729343686456,0.06618,68205.0,68204.0,0.78388555]
[1729343687157,0.06618,68205.0,68204.0,0.6]
[1729343687363,0.06618,68205.0,68203.0,0.19177858]
[1729343687575,0.0002,68204.0,68203.0,0.19177858]
[1729343687757,0.0002,68204.0,68203.0,0.30234705]
[1729343688064,0.0002,68204.0,68203.0,0.90234705]
[1729343688256,0.0002,68204.0,68203.0,0.79177858]
[1729343688864,0.0002,68204.0,68203.0,0.82907161]
[1729343689167,0.0002,68204.0,68203.0,0.90222992]
[1729343689858,0.0002,68204.0,68203.0,0.71854651]
[1729343691768,0.0701515,68210.0,68204.0,0.505821]
[1729343691959,0.0701515,68210.0,68209.0,0.3608]
[1729343692158,0.0701515,68210.0,68209.0,0.80064]
[1729343692354,0.0701515,68210.0,68209.0,1.40064]
[1729343700073,0.0701515,68210.0,68209.0,1.45914402]
[1729343700271,0.0701515,68210.0,68209.0,1.01930402]
[1729343700466,0.0701515,68210.0,68209.0,0.9608]
[1729343702164,0.0701515,68210.0,68209.0,1.01930402]
[1729343702561,0.0041755,68210.0,68209.0,1.01930402]
[1729343702765,0.0041755,68210.0,68209.0,0.9608]
[1729343703384,0.0019918,68212.0,68209.0,0.9608]
[1729343703568,0.06816979,68216.0,68211.0,0.1244604]
[1729343704073,0.06816979,68216.0,68212.0,0.0584864]
[1729343705179,0.00219979,68216.0,68213.0,0.1244594]
[1729343705379,0.00219979,68216.0,68213.0,0.065973]
[1729343705579,0.00219979,68216.0,68213.0,0.12446834]
[1729343705981,0.00219979,68216.0,68213.0,0.065973]
[1729343706672,0.07234257,68217.0,68211.0,0.0866]
[1729343706865,0.066174,68212.0,68211.0,0.0866]
[1729343707067,0.066174,68212.0,68210.0,0.4193044]
[1729343707268,0.066174,68212.0,68211.0,0.0585044]
[1729343707974,0.066174,68212.0,68210.0,0.3608]
[1729343708369,0.0002,68211.0,68210.0,0.38739415]
[1729343709078,0.066175,68211.0,68210.0,0.38739415]
[1729343711471,0.066175,68211.0,68210.0,0.3608]
[1729343711976,0.0944924,68211.0,68210.0,0.3608]
[1729343714885,0.066175,68211.0,68210.0,0.47134508]
[1729343716086,0.065976,68210.0,68209.0,0.07326241]
[1729343716269,0.065977,68209.0,68208.0,0.07326241]
[1729343716469,0.066177,68209.0,68207.0,0.07346448]
[1729343716675,0.066177,68209.0,68205.0,0.0002]
[1729343716676,0.065979,68206.0,68205.0,0.0002]
[1729343716878,0.066179,68206.0,68205.0,0.05880411]
[1729343717270,0.066179,68206.0,68205.0,0.0002]
[1729343718376,0.09306161,68206.0,68205.0,0.0002]
[1729343718775,0.09306161,68206.0,68203.0,0.0002]
[1729343718974,0.066181,68204.0,68203.0,0.0002]
[1729343719582,0.065984,68201.0,68200.0,5.80595399]
[1729343719783,0.066184,68201.0,68200.0,5.80451399]
[1729343720480,0.066184,68201.0,68200.0,5.74590988]
[1729343720982,1.026984,68201.0,68200.0,5.74590988]
[1729343721485,1.466864,68201.0,68200.0,5.74590988]
[1729343723779,1.466864,68201.0,68200.0,4.61135704]
[1729343723981,1.466864,68201.0,68200.0,4.53125104]
[1729343724375,1.466864,68201.0,68200.0,4.45756104]
[1729343726392,1.466864,68201.0,68200.0,4.33200701]
[1729343727189,1.106064,68201.0,68200.0,4.33200701]
[1729343727388,1.466864,68201.0,68200.0,4.33200701]
[1729343728587,1.106064,68201.0,68200.0,4.33200701]
[1729343729292,1.466864,68201.0,68200.0,4.33200701]
[1729343729990,1.49519234,68201.0,68200.0,4.33200701]
[1729343730689,0.89519234,68201.0,68200.0,4.33200701]
[1729343731292,0.53439234,68201.0,68200.0,4.33200701]
[1729343731492,0.89519234,68201.0,68200.0,4.33200701]
[1729343732393,0.53439234,68201.0,68200.0,4.33200701]
[1729343732582,0.89519234,68201.0,68200.0,4.33200701]
[1729343733084,0.53439234,68201.0,68200.0,4.33200701]
[1729343733392,0.89519234,68201.0,68200.0,4.33200701]
[1729343734694,0.53439234,68201.0,68200.0,4.33200701]
[1729343734893,0.89519234,68201.0,68200.0,4.33200701]
[1729343735995,0.89519247,68201.0,68200.0,4.33200701]
[1729343736786,0.45531247,68201.0,68200.0,4.33200701]
[1729343736988,0.426984,68201.0,68200.0,4.33200701]
[1729343739290,1.466864,68201.0,68200.0,4.33200701]
[1729343742900,2.966864,68201.0,68200.0,4.33200701]
[1729343743200,2.526984,68201.0,68200.0,4.33200701]
[1729343743791,2.966864,68201.0,68200.0,4.33200701]
[1729343743995,2.966864,68201.0,68200.0,4.19455201]
[1729343744193,2.966864,68201.0,68200.0,4.08736201]
[1729343744596,2.966864,68201.0,68200.0,3.88507701]
[1729343744797,2.99519443,68201.0,68200.0,3.79816301]
[1729343744995,2.99519443,68201.0,68200.0,3.71577901]
[1729343744996,3.07612807,68201.0,68200.0,3.71577901]
[1729343745501,3.12873187,68201.0,68200.0,3.63885401]
[1729343745691,3.12873187,68201.0,68200.0,3.4774019]
[1729343746191,3.12873363,68201.0,68200.0,3.3924999]
[1729343746391,3.12873363,68201.0,68200.0,3.3079149]
[1729343746600,3.28944407,68201.0,68200.0,3.2315299]
[1729343746895,3.12873363,68201.0,68200.0,3.2315299]
[1729343748105,3.28952252,68201.0,68200.0,3.2315299]
[1729343748513,3.12873363,68201.0,68200.0,3.2315299]
[1729343748904,3.28957092,68201.0,68200.0,3.2315299]
[1729343749202,3.23696712,68201.0,68200.0,3.1556899]
[1729343749414,3.28957121,68201.0,68200.0,3.1556899]
[1729343749614,3.12873392,68201.0,68200.0,3.1556899]
[1729343750117,3.289612,68201.0,68200.0,3.1556899]
[1729343750618,3.12873392,68201.0,68200.0,3.1556899]
[1729343752008,2.99519498,68201.0,68200.0,3.1556899]
[1729343752416,3.03111195,68201.0,68200.0,3.1556899]
[1729343752617,3.03111195,68201.0,68200.0,3.1555899]
[1729343753115,3.03111195,68201.0,68200.0,3.1423899]
[1729343753515,3.03111194,68201.0,68200.0,3.1423899]
[1729343753710,3.03111181,68201.0,68200.0,3.1423899]
[1729343754317,3.03111181,68201.0,68200.0,3.1291899]
[1729343754719,2.99519498,68201.0,68200.0,3.1291899]
[1729343756518,2.99519498,68201.0,68200.0,2.85902081]
[1729343756820,2.99519498,68201.0,68200.0,2.67614381]
[1729343757216,2.99519498,68201.0,68200.0,2.66294381]
[1729343757920,3.03111222,68201.0,68200.0,2.63654381]
[1729343759119,3.03111222,68201.0,68200.0,2.62334381]
[1729343759922,3.12873763,68201.0,68200.0,2.62334381]
[1729343760330,3.12873763,68201.0,68200.0,2.61014381]
[1729343760527,3.12873861,68201.0,68200.0,2.59694381]
[1729343761329,3.12873861,68201.0,68200.0,2.58364381]
[1729343761520,3.12873861,68201.0,68200.0,2.47730481]
[1729343761715,3.12873861,68201.0,68200.0,2.31584632]
[1729343763124,2.68885861,68201.0,68200.0,2.31584632]
[1729343763934,2.68885995,68201.0,68200.0,2.31584632]
[1729343764125,3.12873995,68201.0,68200.0,2.31584632]
[1729343765525,3.48953995,68201.0,68200.0,2.31584632]
[1729343767031,3.39191398,68201.0,68200.0,2.31584632]
[1729343767223,3.39191398,68201.0,68200.0,2.31095393]
[1729343768133,2.67031398,68201.0,68200.0,2.31095393]
[1729343768432,3.39191398,68201.0,68200.0,2.31095393]
[1729343768634,3.39191389,68201.0,68200.0,2.31095393]
[1729343768833,2.67031389,68201.0,68200.0,2.29775393]
[1729343769134,3.39191389,68201.0,68200.0,2.28455393]
[1729343769635,3.39191389,68201.0,68200.0,2.27145393]
[1729343770222,3.39191389,68201.0,68200.0,2.15693209]
[1729343770931,3.39191389,68201.0,68200.0,2.14373209]
[1729343771728,2.67031389,68201.0,68200.0,2.14373209]
[1729343771928,3.39191389,68201.0,68200.0,2.14373209]
[1729343772430,3.39191389,68201.0,68200.0,2.13053209]
[1729343773327,3.39191314,68201.0,68200.0,2.13053209]
[1729343776030,2.67031314,68201.0,68200.0,2.13053209]
[1729343776538,3.39191314,68201.0,68200.0,2.13053209]
[1729343777931,2.35203314,68201.0,68200.0,2.13053209]
[1729343779024,1.63043314,68201.0,68200.0,2.13053209]
[1729343779229,2.35203314,68201.0,68200.0,2.13053209]
[1729343782250,2.44965615,68201.0,68200.0,2.13053209]
[1729343782946,2.44965582,68201.0,68200.0,2.13053209]
[1729343784137,1.72805582,68201.0,68200.0,2.13053209]
[1729343784338,2.44965582,68201.0,68200.0,2.13053209]
[1729343785735,2.44965582,68201.0,68200.0,2.09909209]
[1729343787037,2.44965582,68201.0,68200.0,2.06690209]
[1729343788346,1.72805582,68201.0,68200.0,2.06690209]
[1729343788647,2.44965582,68201.0,68200.0,2.06690209]
[1729343788863,1.72805582,68201.0,68200.0,2.06690209]
[1729343789051,2.44965582,68201.0,68200.0,2.06690209]
[1729343789747,2.44965582,68201.0,68200.0,1.95919509]
[1729343790051,2.35203201,68201.0,68200.0,1.95919509]
[1729343790357,2.35203201,68201.0,68200.0,1.95909509]
[1729343790747,2.35203201,68201.0,68200.0,1.94589509]
[1729343790947,2.35203201,68201.0,68200.0,1.93269509]
[1729343791345,2.35203201,68201.0,68200.0,1.91949509]
[1729343792554,2.35203153,68201.0,68200.0,1.91949509]
[1729343793851,1.63043153,68201.0,68200.0,1.91949509]
[1729343794152,2.31611511,68201.0,68200.0,1.91949509]
[1729343796748,1.59451511,68201.0,68200.0,1.91949509]
[1729343796952,2.31611511,68201.0,68200.0,1.91949509]
[1729343797245,2.3970492,68201.0,68200.0,1.91949509]
[1729343797445,1.6754492,68201.0,68200.0,1.91949509]
[1729343797652,2.44965256,68201.0,68200.0,1.91949509]
[1729343801260,1.72805256,68201.0,68200.0,1.91949509]
[1729343801556,2.44965256,68201.0,68200.0,1.91949509]
[1729343802655,1.72805256,68201.0,68200.0,1.91949509]
[1729343802855,2.44965256,68201.0,68200.0,1.91949509]
[1729343803561,1.72805256,68201.0,68200.0,1.91949509]
[1729343803758,2.44965256,68201.0,68200.0,1.91949509]
[1729343803954,2.86061256,68201.0,68200.0,1.91949509]
[1729343805168,2.76299103,68201.0,68200.0,1.91949509]
[1729343805365,2.72707511,68201.0,68200.0,1.91949509]
[1729343806770,2.72707434,68201.0,68200.0,1.91949509]
[1729343807267,2.76298977,68201.0,68200.0,1.91949509]
[1729343810874,2.04138977,68201.0,68200.0,1.91949509]
[1729343811175,2.76298977,68201.0,68200.0,1.91949509]
[1729343811781,2.72707433,68201.0,68200.0,1.91949509]
[1729343816480,2.72707337,68201.0,68200.0,1.91949509]
[1729343820080,1.36060229,68201.0,68200.0,1.91949509]
[1729343820793,1.36060175,68201.0,68200.0,1.91949509]
[1729343825897,0.17544096,68201.0,68200.0,2.95937509]
[1729343826098,0.27050179,68201.0,68200.0,2.95937509]
[1729343826286,0.12810179,68201.0,68200.0,2.95937509]
[1729343826489,0.10925696,68201.0,68200.0,2.95937509]
[1729343826989,0.17523496,68201.0,68200.0,1.91949509]
[1729343827182,0.065978,68201.0,68200.0,1.91949509]
[1729343835396,0.17522905,68201.0,68200.0,1.91949509]
[1729343835898,0.53602905,68201.0,68200.0,1.91949509]
[1729343838699,0.5360266,68201.0,68200.0,1.91949509]
[1729343839998,0.1752266,68201.0,68200.0,1.91949509]
[1729343840406,0.3361295,68201.0,68200.0,1.91949509]
[1729343841105,0.1752266,68201.0,68200.0,2.51949509]
[1729343841310,0.1752266,68201.0,68200.0,2.95937509]
[1729343841902,0.33614949,68201.0,68200.0,2.95937509]
[1729343842108,0.33614949,68201.0,68200.0,2.51949509]
[1729343842293,0.22690089,68201.0,68200.0,2.51949509]
[1729343842496,0.065978,68201.0,68200.0,2.51949509]
[1729343850412,0.065978,68201.0,68200.0,1.91949509]
[1729343850413,0.14689789,68201.0,68200.0,1.91949509]
[1729343850619,0.17522363,68201.0,68200.0,1.91949509]
[1729343857316,0.065978,68201.0,68200.0,1.96345363]
[1729343857514,0.065978,68201.0,68200.0,1.91949509]
[1729343858116,0.065978,68201.0,68200.0,1.96348368]
[1729343858318,0.065978,68201.0,68200.0,1.91949509]
[1729343859821,0.065978,68201.0,68200.0,1.96348827]
[1729343863322,0.065978,68201.0,68200.0,1.91949509]
[1729343864819,0.426778,68201.0,68200.0,1.91949509]
[1729343872518,0.53602519,68201.0,68200.0,1.91949509]
[1729343874526,0.53602519,68201.0,68200.0,2.51949509]
[1729343874527,0.06423203,68201.0,68200.0,2.51949509]
[1729343874727,0.06423203,68201.0,68200.0,1.91949509]
[1729343875029,0.09285661,68206.0,68200.0,2.51949509]
[1729343875216,0.17521219,68205.0,68200.0,1.91949509]
[1729343875419,0.10923719,68204.0,68200.0,1.91949509]
[1729343875729,0.10923719,68203.0,68200.0,1.91949509]
[1729343875929,0.10923719,68202.0,68200.0,1.91949509]
[1729343876222,0.06423203,68201.0,68200.0,1.91949509]
[1729343878914,0.13021003,68201.0,68200.0,1.91949509]
[1729343879316,0.13021003,68201.0,68200.0,2.51949509]
[1729343880214,0.15676779,68201.0,68200.0,2.95937509]
[1729343880428,0.065978,68201.0,68200.0,2.95937509]
[1729343886827,0.0292976,68201.0,68200.0,2.95937509]
[1729343888232,0.02652606,68202.0,68200.0,2.95937509]
[1729343888424,0.0991,68209.0,68201.0,0.43988]
[1729343888624,0.065971,68208.0,68207.0,0.3608]
[1729343893239,0.12502382,68209.0,68207.0,0.3608]
[1729343893740,0.19099382,68209.0,68207.0,0.3608]
[1729343894931,0.065971,68208.0,68207.0,0.3608]
[1729343896532,0.065971,68208.0,68207.0,0.4047082]
[1729343898428,0.065971,68208.0,68207.0,0.3608]
[1729343902145,0.065971,68208.0,68207.0,0.41936184]
[1729343902853,0.09429125,68208.0,68207.0,0.3608]
[1729343903336,0.02832025,68208.0,68207.0,0.3608]
[1729343905830,0.02832007,68208.0,68207.0,0.3608]
[1729343906037,0.06422249,68208.0,68207.0,0.3608]
[1729343906233,0.02832007,68208.0,68207.0,0.3608]
[1729343909832,0.12502382,68209.0,68207.0,0.3608]
[1729343910038,0.12502382,68209.0,68207.0,0.41944309]
[1729343910238,0.12502382,68209.0,68208.0,0.05864309]
[1729343915951,0.12502382,68209.0,68207.0,0.41944309]
[1729343916152,0.0002,68208.0,68207.0,0.41944309]
[1729343917257,0.0002,68208.0,68207.0,0.3608]
[1729343917648,0.0002,68208.0,68207.0,0.41945495]
[1729343917853,0.17539506,68208.0,68207.0,0.3608]
[1729343919150,0.13039368,68208.0,68207.0,0.3608]
[1729343924853,0.066171,68208.0,68207.0,0.3608]
[1729343928461,0.0002,68208.0,68207.0,0.3608]
[1729343932679,0.0002,68208.0,68207.0,0.43375772]
[1729343934564,0.0002,68208.0,68207.0,0.3608]
[1729343936770,0.0002,68208.0,68207.0,0.43375772]
[1729343937266,0.0002,68208.0,68207.0,0.54547901]
[1729343939477,0.0002,68208.0,68207.0,0.43375772]
[1729343939773,0.0002,68208.0,68207.0,0.3608]
[1729343939969,0.06442101,68208.0,68207.0,0.3608]
[1729343940564,0.02851941,68208.0,68207.0,0.3608]
[1729343947488,0.02851927,68208.0,68207.0,0.3608]
[1729343947691,0.06442074,68208.0,68207.0,0.3608]
[1729343947990,0.0002,68208.0,68207.0,0.3608]
[1729343948478,0.0002,68208.0,68207.0,0.43375772]
[1729343948785,0.0002,68208.0,68207.0,0.3608]
[1729343948984,0.0002,68208.0,68207.0,0.43375772]
[1729343949581,0.0002,68208.0,68207.0,0.54548046]
[1729343951390,0.0002,68208.0,68207.0,0.47252274]
[1729343954885,0.0002,68208.0,68207.0,0.54586638]
[1729343958887,0.0002,68208.0,68207.0,0.47252274]
[1729343960593,0.0002,68208.0,68207.0,0.54586594]
[1729343960793,0.0002,68208.0,68207.0,0.47252274]
[1729343960992,0.0002,68208.0,68207.0,0.54586596]
[1729343961396,0.0002,68208.0,68207.0,0.47252274]
[1729343961884,0.0002,68208.0,68207.0,0.47252073]
[1729343962990,0.06441948,68208.0,68207.0,0.3608]
[1729343964805,0.06441945,68208.0,68207.0,0.3608]
[1729343964992,0.02851873,68208.0,68207.0,0.3608]
[1729343969403,0.06441948,68208.0,68207.0,0.3608]
[1729343969902,0.0002,68208.0,68207.0,0.47252077]
[1729343971703,0.066171,68208.0,68207.0,0.54586449]
[1729343977208,0.066171,68208.0,68207.0,0.47252093]
[1729343977404,0.066171,68208.0,68207.0,0.3608]
[1729343980609,0.13039082,68208.0,68207.0,0.3608]
[1729343981408,0.13039078,68208.0,68207.0,0.3608]
[1729343985107,0.066171,68208.0,68207.0,0.54586965]
[1729343985512,0.066171,68208.0,68207.0,0.43414842]
[1729343986017,0.066171,68208.0,68207.0,0.3608]
[1729343993009,0.10207255,68208.0,68207.0,0.3608]
[1729343993210,0.13039193,68208.0,68207.0,0.3608]
[1729344000116,0.066171,68208.0,68207.0,0.3608]
[1729344007222,0.1303918,68208.0,68207.0,0.3608]
[1729344008318,0.09449032,68208.0,68207.0,0.3608]
[1729344013435,0.13039189,68208.0,68207.0,0.3608]
[1729344015237,0.066171,68208.0,68207.0,0.3608]
[1729344021335,0.066171,68208.0,68207.0,0.43414842]
[1729344021843,0.066171,68208.0,68207.0,0.3608]
[1729344023149,0.066171,68208.0,68207.0,0.43414842]
[1729344027039,0.066171,68208.0,68207.0,0.3608]
[1729344030259,0.13039247,68208.0,68207.0,0.3608]
[1729344032854,0.13039247,68208.0,68203.0,0.11]
[1729344033049,0.066171,68208.0,68207.0,0.3608]
[1729344033254,0.13039247,68208.0,68207.0,0.3608]
[1729344036645,0.13019247,68208.0,68203.0,0.11]
[1729344036845,0.065971,68208.0,68207.0,0.3608]
[1729344037048,0.13019248,68208.0,68207.0,0.3608]
[1729344037346,0.13019248,68208.0,68207.0,0.47252422]
[1729344037347,0.065971,68208.0,68207.0,0.47252422]
[1729344037851,0.065971,68208.0,68207.0,0.11172422]
[1729344038050,0.065971,68208.0,68207.0,0.47252422]
[1729344040353,0.065971,68208.0,68207.0,0.56007349]
[1729344041260,0.12502382,68209.0,68207.0,0.56007349]
[1729344041559,0.12502382,68209.0,68208.0,0.47252422]
[1729344043955,0.12502382,68209.0,68208.0,0.11172422]
[1729344044156,0.12502382,68209.0,68208.0,0.47252422]
[1729344045353,0.12502382,68209.0,68208.0,0.3608]
[1729344052357,0.18924435,68209.0,68208.0,0.3608]
[1729344052668,0.15334302,68209.0,68208.0,0.3608]
[1729344057371,0.1892444,68209.0,68208.0,0.3608]
[1729344057564,0.15334302,68209.0,68208.0,0.3608]
[1729344060265,0.12502382,68209.0,68208.0,0.3608]
[1729344064382,0.12502382,68209.0,68206.0,0.07334874]
[1729344064571,0.12502382,68209.0,68208.0,0.3608]
[1729344067367,0.18924441,68209.0,68208.0,0.3608]
[1729344075482,0.12502382,68209.0,68208.0,0.3608]
[1729344082385,0.18924475,68209.0,68208.0,0.3608]
[1729344083990,0.25521475,68209.0,68208.0,0.3608]
[1729344084192,0.065971,68208.0,68203.0,0.11]
[1729344084494,0.0002,68204.0,68203.0,0.11]